Workbook

Sheet 1999_00-Deutsch (hidden)
A1: Asclepion-Meditec AG
A2: Kapitalflussrechnung
A3: für die Geschäftsjahre zum 30. September 2000 und 2001
G5: 1.95583
G6: 30. September | I6: 30. September
G7: 2000 | I7: 2001
G8: TDM | I8: TDM
A11: Cash Flow aus laufender Geschäftstätigkeit:
B12: Jahresüberschuss | G12: 3827 | I12: -14865
B13: Anpassung zur Überleitung des Jahresüberschusses/Jahresfehlbetrags
B14: zur Nettoveränderung der liquiden Mittel aus laufender Geschäftstätigkeit:
C15: Abschreibungen | G15: 2273 | I15: 2334
C16: Verluste /(Gewinne) aus Abgang von Sachanlagevermögen | G16: -72 | I16: 85
C17: Zahlungsunwirksame Erträge | G17: 0 | I17: =-(4418+5400+4271+794) -> -14883
C18: Zuführung zu Wertberichtigungen | G18: 0 | I18: 13190
C19: Auswirkung von Wechselkursänderungen | G19: -1815 | I19: 0
C20: Anpassung Ertragsteuern für Kosten im Zusammenhang mit dem Börsengang | G20: 5291 | I20: 0
C21: Latente Steuern | G21: -706 | I21: =-4271+505 -> -3766
C22: Veränderung bei Vermögensgegenständen und Verbindlichkeiten:
C23: Erhöhung der Forderungen an verbundene Unternehmen | D23: (Erhöhung) / Verringerung der Forderungen
E24: und Dritte | G24: -23032 | I24: -3319
C25: Erhöhung Vorräte | D25: Erhöhung Vorräte | G25: -1529 | I25: -8688
C26: (Erhöhung) / Verringerung der aktiven Rechnungs- | D26: (Erhöhung) / Verringerung der aktiven Rechnungs-
E27: abgrenzung und sonstiger Vermögensgegenstände | G27: -1432 | I27: -4835
C28: (Erhöhung) / Verringerung aktivierter Börseneinführungskosten | D28: Erhöhung aktivierter Börseneinführungskosten | G28: 500 | I28: 0
C29: Erhöhung / (Verringerung) der Verbindlichkeiten | D29: Erhöhung / (Verringerung) der Verbindlichkeiten
E30: an verbundene Unternehmen und Dritte | G30: 1616 | I30: =-523 -> -523
C31: Erhöhung / (Verringerung) der Rückstellungen, passiven | D31: Erhöhung / (Verringerung) der Rückstellungen, passiven
E32: Rechnungsabgrenzungen und sonstigen Verbindlichkeiten | G32: 3088 | I32: 1311
E33: Gesamte Anpassungen | G33: =SUM(G15:G32)-1 -> -15819 | I33: =SUM(I15:I32) -> -19094
D34: Netto-Kapitalzufluss (-abfluss) aus laufender Geschäftstätigkeit | E34: Netto-Kapitalabfluss aus laufender Geschäftstätigkeit | G34: =+G12+G33 -> -11992 | I34: =+I12+I33 -> -33959
A35: Cash Flow aus der Investitionstätigkeit:
B36: Erwerb von Sachanlagevermögen | G36: -2255 | I36: -17862
B37: Erlöse aus dem Verkauf von Sachanlagevermögen | G37: 125 | I37: 14
B38: Erwerb von Minderheitenbeteiligungen an nahestehenden Unternehmen | G38: -3548 | I38: -1301
B39: Gewährung von Darlehen | G39: -113 | I39: -6984
E40: Netto-Kapitalabfluss aus Investitionstätigkeit | G40: =SUM(G36:G39) -> -5791 | I40: =SUM(I36:I39) -> -26133
A41: Cash Flow aus Finanzierungstätigkeit:
B42: Einnahmen aus der Ausgabe von Stückaktien | G42: 113994 | I42: 0
B43: Aufnahme kurzfristiger Kredite | G43: 86 | I43: 3162
B44: Rückzahlung kurzfristiger Kredite | G44: -29386 | I44: -86
B45: Aufnahme langfristiger Kredite | G45: 125 | I45: 10500
B46: Rückzahlung langfristiger Kredite | G46: -1914 | I46: -90
B47: Rückzahlungen unter Leasingverträgen | G47: -80 | I47: -686
B48: Erlöse aus Sale/Leaseback Transaktion | G48: 980 | I48: 2681
E49: Netto-Kapitalzufluss aus Finanzierungstätigkeit | G49: =SUM(G42:G48) -> 83805 | I49: =SUM(I42:I48) -> 15481
A50: Auswirkung von Wechselkursänderungen | G50: -10 | I50: 23
A51: Netto-Erhöhung (Verringerung) der liquiden Mittel | G51: =+G34+G40+G49+G50-1 -> 66011 | I51: =+I34+I40+I49+I50 -> -44588
A52: Liquide Mittel am Jahresbeginn | G52: 168 | I52: 66179
A53: Liquide Mittel am Jahresende | G53: =+G51+G52 -> 66179 | I53: =+I51+I52 -> 21591
A55: Ergänzende Angaben zum Cash Flow:
B56: gezahlte Zinsen | G56: 361.9946519 | I56: 850
B57: gezahlte Steuern vom Einkommen und Ertrag | G57: 1012.357925 | I57: 1265
A59: Nicht zahlungswirksame Investitions- und Finanzierungstätigkeiten
B60: Umwandlung der Kapitalrücklage in Grundkapital | G60: 3748.792073 | I60: 0
B61: Umwandlung Verbindlichkeiten für deferred shares in Grundkapital | G61: 199.9151255 | I61: 0
B62: Umwandlung Verbindlichkeiten für deferred shares in Kapitalrücklage | G62: 399.8302511 | I62: 0
B63: Umbuchung von Vorratsvermögen in Sachanlagevermögen | G63: 161 | I63: 369
B64: Umbuchung von Forderungen aus Lieferungen und Leistungen
C65: in Finanzanlagen | G65: 0 | I65: 6260
A68: Auf die nachfolgenden Erläuterungen im Anhang wird verwiesen

Sheet CF Deutsch
A2: Carl Zeiss Meditec AG
A3: Konzern-Kapitalflussrechnung (IFRS) 1.10.2015 bis 31.12.2015
G5: 2015/16 | I5: 2014/15
F6: Anhang | G6: 1.10.2015 bis 31.12.2015 | I6: 1.10.2014 bis 31.12.2014
G8: Tsd. € | I8: =+G8 -> Tsd. €
A10: Cashflow aus der gewöhnlichen Geschäftstätigkeit:
B12: Konzernergebnis | G12: =16721+354 -> 17075 | I12: 19413
B14: Anpassung zur Überleitung des Konzernergebnisses
B15: zur Nettoveränderung der liquiden Mittel aus laufender Geschäftstätigkeit:
B17: Ertragsteueraufwand | F17: (7) | G17: 8397 | I17: 9226
B18: Zinserträge / Zinsaufwendungen | F18: (6) | G18: 647 | I18: 357
B19: Ergebnis aus At-Equity bewerteten Finanzanlagen | F19: (6) | G19: 2466 | I19: 0
B20: Abschreibungen | F20: (11) (12) | G20: 4694 | I20: 4613
B21: Gezahlte Zinsen | G21: -387 | I21: -321
B22: Erstattete Ertragsteuern | G22: 63 | I22: 657
B23: Gezahlte Ertragsteuern | G23: -10314 | I23: -10475
B25: Veränderungen des Working Capitals:
C27: Forderungen aus Lieferungen und Leistungen | F27: (17) | G27: 12379 | I27: -13436
C28: Vorräte | F28: (16) | G28: -12313 | I28: -10948
C29: Sonstige Vermögenswerte | F29: (15) (18) (19) | G29: 665 | I29: -754
C30: Verbindlichkeiten aus Lieferungen und Leistungen | G30: -19011 | I30: -13718
C31: Rückstellungen und finanzielle Verbindlichkeiten | F31: (22) (23) (25) | G31: 4981 | I31: -331
C32: Sonstige Verbindlichkeiten | F32: (26) | G32: -2361 | I32: 6700
B34: Gesamte Anpassungen | G34: =SUM(G17:G33) -> -10094 | I34: =SUM(I17:I33) -> -28430
B35: Netto-Kapitalzufluss aus der gewöhnlichen Geschäftstätigkeit | G35: =+G12+G34 -> 6981 | I35: =+I12+I34 -> -9017
A37: Cashflow aus der Investitionstätigkeit:
B39: Investitionen in Sachanlagen | F39: (12) | G39: -1808 | I39: -2900
B40: Investitionen in sonstige immaterielle Vermögenswerte | F40: (11) | G40: -2691 | I40: -1406
B41: Erlöse aus dem Verkauf von Anlagevermögen | G41: 15 | I41: 9
B42: Erwerb von nach der Equity Methode bilanzierten Beteiligungen | F42: (13) | G42: -2484 | I42: -1975
B43: Auszahlungen für sonstige Ausleihungen | F43: (27) | G43: -690 | I43: 0
B44: Einzahlungen aus Festgeldanlagen | F44: (33) | G44: 110000 | I44: 0
B46: Netto-Kapitalabfluss aus der Investitionstätigkeit | G46: =SUM(G39:G44) -> 102342 | I46: =SUM(I39:I44) -> -6272
A48: Cashflow aus der Finanzierungstätigkeit:
B49: Aufnahme/(Rückzahlung) der kurzfristigen Kredite | G49: 948 | I49: -334
B50: Aufnahme/(Rückzahlung) der langfristigen Kredite | F50: (24) | G50: -123 | I50: -119
B51: (Zunahme)/Abnahme der Forderungen aus Finanzausgleich | F51: (2u) (33) | G51: -104791 | I51: 6519
B52: Zunahme/(Abnahme) der Verbindlichkeiten aus Finanzausgleich | F52: (2u) (33) | G52: -2222 | I52: 8527
B53: Zunahme/(Abnahme) der Verbindlichkeiten aus Finanzierungsleasing | F53: (28) | G53: -712 | I53: -568
B54: Einnahmen aus Kapitalerhöhung | F54: (24)
B55: Kosten der Kapitalerhöhung (vor Steuern) | F55: (24)
B56: Dividendenzahlung an Minderheitsaktionäre der Carl Zeiss Meditec Co. Ltd. (Japan) | F56: (13)
B57: Dividendenzahlung an die Aktionäre der Carl Zeiss Meditec AG | F57: (9) | G57: 0 | I57: 0
B58: Erwerb von Anteilen nicht-beherrschender Gesellschafter
B60: Netto-Kapitalzufluss/(-abfluss) aus der Finanzierungstätigkeit | G60: =SUM(G48:G59) -> -106900 | I60: =SUM(I48:I59) -> 14025
A62: Einfluss von Wechselkursänderungen auf Zahlungsmittel und Zahlungsmitteläquivalente | G62: =386-1 -> 385 | I62: =-4 -> -4
A63: Zunahme/(Abnahme) der Zahlungsmittel und Zahlungsmitteläquivalente | G63: =+G35+G46+G60+G62 -> 2808 | I63: =+I35+I46+I60+I62 -> -1268
A64: Zahlungsmittel und Zahlungsmitteläquivalente am Beginn des Berichtszeitraumes | F64: (20) | G64: 13041 | I64: 10727
A65: Zahlungsmittel und Zahlungsmitteläquivalente am Ende des Berichtszeitraumes | F65: (20) | G65: =+G63+G64 -> 15849 | I65: =+I63+I64 -> 9459
A67: Der nachfolgende Konzernanhang ist integraler Bestandteil des ungeprüften Konzernabschlusses.

Sheet CF_AR (hidden)
A1: Carl Zeiss Meditec AG
A2: selected positions
A3: Consolidated statement of cash flow (US GAAP)
F5: 1. October 2001 - | H5: 1. October 2002 -
F6: 30. June 2002 | H6: 30. June 2003
F7: Tsd. Euro | H7: Tsd. Euro
A10: Cash flow from operating activities
C11: Net income | F11: =+'CF Deutsch'!G12 -> 17075 | H11: =+'CF Deutsch'!I12 -> 19413
C12: Loss on disposal of discontinued operations | F12: =+'CF Deutsch'!#REF! ->  | H12: =+'CF Deutsch'!#REF! -> 
C13: Depreciation and amortisation | F13: =+'CF Deutsch'!G20 -> 4694 | H13: =+'CF Deutsch'!I20 -> 4613
C14: Trade accounts receivable | F14: =+'CF Deutsch'!G27 -> 12379 | H14: =+'CF Deutsch'!I27 -> -13436
C15: Inventories | F15: =+'CF Deutsch'!G28 -> -12313 | H15: =+'CF Deutsch'!I28 -> -10948
C16: Trade accounts payable | F16: =+'CF Deutsch'!G30 -> -19011 | H16: =+'CF Deutsch'!I30 -> -13718
C17: Accrued tax expenses | D17: Erhöhung Vorräte | F17: =+'CF Deutsch'!#REF! ->  | H17: =+'CF Deutsch'!#REF! -> 
C18: Other accrued expenses and liabilities | D18: (Erhöhung) / Verringerung der aktiven Rechnungs- | F18: =+'CF Deutsch'!G31 -> 4981 | H18: =+'CF Deutsch'!I31 -> -331
A20: Cash flow from investing activities | F20: =+'CF Deutsch'!G46 -> 102342 | H20: =+'CF Deutsch'!I46 -> -6272
A22: Cash flow from financing activities
B23: Proceeds from issuance of short-term debt from related parties | F23: =+'CF Deutsch'!#REF! ->  | H23: =+'CF Deutsch'!#REF! -> 
B24: Increase / (decrease) in liabilities due to Treasury | F24: =+'CF Deutsch'!#REF! ->  | H24: =+'CF Deutsch'!#REF! -> 
B25: (Increase) / decrease in accounts receivable due to Treasury | F25: =+'CF Deutsch'!G51 -> -104791 | H25: =+'CF Deutsch'!I51 -> 6519
A27: Net increase in cash (compared to Oct 1) | F27: =+'CF Deutsch'!G63 -> 2808 | H27: =+'CF Deutsch'!I63 -> -1268
